[Event "Titled Tuesday Blitz November 29 Early 2022"]
[White "Havas, Ladislav"]
[Black "Malek, Jan"]
[WhiteFideId "14501090"]
[BlackFideId "21864080"]
[WhiteElo "2199"]
[BlackElo "2255"]
[Result "0-1"]
[Round "02"]
[TimeControl "180+1"]
[Date "2022.11.30"]
[WhiteClock "0:00:23"]
[BlackClock "0:00:15"]

1. d4 {[%clk 0:03:00]}  Nf6 {[%clk 0:02:28]} 2. Bg5 {[%clk 0:02:59]}  c5 {[%clk 0:02:26]} 3. d5 {[%clk 0:02:59]}  Qb6 {[%clk 0:02:26]} 4. Nc3 {[%clk 0:02:58]}  Qxb2 {[%clk 0:02:24]} 5. Bd2 {[%clk 0:02:59]}  Qb6 {[%clk 0:02:22]} 6. e4 {[%clk 0:02:59]}  d6 {[%clk 0:02:22]} 7. f4 {[%clk 0:03:00]}  g6 {[%clk 0:02:18]} 8. Nf3 {[%clk 0:02:59]}  Bg7 {[%clk 0:02:18]} 9. Rb1 {[%clk 0:02:58]}  Qd8 {[%clk 0:02:17]} 10. Bb5+ {[%clk 0:02:56]}  Nfd7 {[%clk 0:02:15]} 11. O-O {[%clk 0:02:46]}  O-O {[%clk 0:02:09]} 12. a4 {[%clk 0:02:46]}  Na6 {[%clk 0:02:02]} 13. Qe1 {[%clk 0:02:41]}  Nb4 {[%clk 0:02:01]} 14. Rc1 {[%clk 0:02:37]}  a6 {[%clk 0:02:00]} 15. Bc4 {[%clk 0:02:35]}  Qc7 {[%clk 0:01:56]} 16. h3 {[%clk 0:02:27]}  Nb6 {[%clk 0:01:45]} 17. Be2 {[%clk 0:02:22]}  c4 {[%clk 0:01:44]} 18. Kh1 {[%clk 0:02:19]}  f5 {[%clk 0:01:37]} 19. Qh4 {[%clk 0:02:15]}  fxe4 {[%clk 0:01:31]} 20. Ng5 {[%clk 0:02:13]}  h6 {[%clk 0:01:30]} 21. Ngxe4 {[%clk 0:02:13]}  N4xd5 {[%clk 0:01:29]} 22. a5 {[%clk 0:02:06]}  Nxc3 {[%clk 0:01:09]} 23. Nxc3 {[%clk 0:02:06]}  Nd7 {[%clk 0:00:47]} 24. Nd5 {[%clk 0:02:00]}  Qc5 {[%clk 0:00:47]} 25. Nxe7+ {[%clk 0:01:59]}  Kf7 {[%clk 0:00:47]} 26. f5 {[%clk 0:01:52]}  Bf6 {[%clk 0:00:40]} 27. fxg6+ {[%clk 0:01:44]}  Kxe7 {[%clk 0:00:40]} 28. Qxh6 {[%clk 0:01:40]}  Rh8 {[%clk 0:00:36]} 29. g7 {[%clk 0:01:36]}  Rxh6 {[%clk 0:00:33]} 30. g8=Q {[%clk 0:01:36]}  Rh8 {[%clk 0:00:31]} 31. Qg6 {[%clk 0:01:30]}  Qd4 {[%clk 0:00:27]} 32. Rxf6 {[%clk 0:01:20]}  Nxf6 {[%clk 0:00:21]} 33. Qg7+ {[%clk 0:01:20]}  Ke6 {[%clk 0:00:22]} 34. Bg4+ {[%clk 0:01:17]}  Kd5 {[%clk 0:00:21]} 35. Qxh8 {[%clk 0:01:01]}  Bxg4 {[%clk 0:00:20]} 36. Qxa8 {[%clk 0:00:56]}  Qxd2 {[%clk 0:00:21]} 37. Qxb7+ {[%clk 0:00:55]}  Ke5 {[%clk 0:00:21]} 38. Rf1 {[%clk 0:00:49]}  Be6 {[%clk 0:00:20]} 39. Qf3 {[%clk 0:00:46]}  Ne4 {[%clk 0:00:19]} 40. Kh2 {[%clk 0:00:38]}  Qg5 {[%clk 0:00:16]} 41. Re1 {[%clk 0:00:35]}  d5 {[%clk 0:00:17]} 42. Qc3+ {[%clk 0:00:33]}  d4 {[%clk 0:00:15]} 43. Qf3 {[%clk 0:00:31]}  Qf4+ {[%clk 0:00:15]} 44. Qxf4+ {[%clk 0:00:31]}  Kxf4 {[%clk 0:00:16]} 45. Rf1+ {[%clk 0:00:28]}  Ke5 {[%clk 0:00:15]} 46. h4 {[%clk 0:00:28]}  d3 {[%clk 0:00:15]} 47. cxd3 {[%clk 0:00:28]}  cxd3 {[%clk 0:00:16]} 48. h5 {[%clk 0:00:28]}  d2 {[%clk 0:00:15]} 49. h6 {[%clk 0:00:29]}  Nf6 {[%clk 0:00:13]} 50. Rd1 {[%clk 0:00:26]}  Ng4+ {[%clk 0:00:12]} 51. Kg3 {[%clk 0:00:26]}  Nxh6 {[%clk 0:00:13]} 52. Rxd2 {[%clk 0:00:26]}  Nf5+ {[%clk 0:00:14]} 53. Kf2 {[%clk 0:00:25]}  Nd4 {[%clk 0:00:15]} 54. Rb2 {[%clk 0:00:24]}  Nb3 {[%clk 0:00:16]} 55. Re2+ {[%clk 0:00:23]}  Kd6 {[%clk 0:00:16]} 56. g3 {[%clk 0:00:23]}  Nxa5 {[%clk 0:00:16]} 57. Rd2+ {[%clk 0:00:22]}  Kc5 {[%clk 0:00:15]} 58. g4 {[%clk 0:00:23]}  Bxg4 {[%clk 0:00:13]} 59. Ra2 {[%clk 0:00:23]}  Kb6 {[%clk 0:00:14]} 60. Kg3 {[%clk 0:00:22]}  Be6 {[%clk 0:00:13]} 61. Rb2+ {[%clk 0:00:21]}  Bb3 {[%clk 0:00:14]} 62. Kf2 {[%clk 0:00:22]}  Kb5 {[%clk 0:00:15]} 63. Ke1 {[%clk 0:00:20]}  Kb4 {[%clk 0:00:15]} 64. Ke2 {[%clk 0:00:18]}  Nc4 {[%clk 0:00:16]} 65. Rb1 {[%clk 0:00:15]}  a5 {[%clk 0:00:17]} 66. Ra1 {[%clk 0:00:15]}  a4 {[%clk 0:00:18]} 67. Rxa4+ {[%clk 0:00:15]}  Bxa4 {[%clk 0:00:18]} 68. Kd3 {[%clk 0:00:16]}  Kc5 {[%clk 0:00:18]} 69. Kc3 {[%clk 0:00:16]}  Ne5 {[%clk 0:00:17]} 70. Kb2 {[%clk 0:00:16]}  Kd4 {[%clk 0:00:18]} 71. Ka3 {[%clk 0:00:16]}  Bc6 {[%clk 0:00:17]} 72. Kb2 {[%clk 0:00:17]}  Nd3+ {[%clk 0:00:17]} 73. Ka1 {[%clk 0:00:18]}  Kc3 {[%clk 0:00:17]} 74. Kb1 {[%clk 0:00:18]}  Kb3 {[%clk 0:00:17]} 75. Ka1 {[%clk 0:00:19]}  Be4 {[%clk 0:00:17]} 76. Kb1 {[%clk 0:00:20]}  Kc3 {[%clk 0:00:16]} 77. Ka1 {[%clk 0:00:21]}  Bd5 {[%clk 0:00:16]} 78. Kb1 {[%clk 0:00:21]}  Nb4 {[%clk 0:00:17]} 79. Ka1 {[%clk 0:00:22]}  Nc2+ {[%clk 0:00:18]} 80. Kb1 {[%clk 0:00:22]}  Bc4 {[%clk 0:00:19]} 81. Kc1 {[%clk 0:00:21]}  Ba2 {[%clk 0:00:18]} 82. Kd1 {[%clk 0:00:21]}  Nd4 {[%clk 0:00:17]} 83. Kc1 {[%clk 0:00:22]}  Ne2+ {[%clk 0:00:15]} 84. Kd1 {[%clk 0:00:22]}  Kd3 {[%clk 0:00:16]} 85. Ke1 {[%clk 0:00:22]}  Ke3 {[%clk 0:00:17]} 86. Kd1 {[%clk 0:00:22]}  Bb3+ {[%clk 0:00:17]} 87. Ke1 {[%clk 0:00:22]}  Nd4 {[%clk 0:00:18]} 88. Kf1 {[%clk 0:00:22]}  Ne2 {[%clk 0:00:15]} 89. Ke1 {[%clk 0:00:22]}  Bc2 {[%clk 0:00:15]} 90. Kf1 {[%clk 0:00:22]}  Nd4 {[%clk 0:00:14]} 91. Ke1 {[%clk 0:00:23]}  Nf3+ {[%clk 0:00:12]} 92. Kf1 {[%clk 0:00:23]}  Nh4 {[%clk 0:00:11]} 93. Ke1 {[%clk 0:00:23]}  Ng2+ {[%clk 0:00:12]} 94. Kf1 {[%clk 0:00:23]}  Kf3 {[%clk 0:00:12]} 95. Kg1 {[%clk 0:00:23]}  Kg3 {[%clk 0:00:13]} 96. Kf1 {[%clk 0:00:23]}  Bd3+ {[%clk 0:00:13]} 97. Kg1 {[%clk 0:00:23]}  Nf4 {[%clk 0:00:13]} 98. Kh1 {[%clk 0:00:23]}  Be2 {[%clk 0:00:14]} 99. Kg1 {[%clk 0:00:23]}  Nh3+ {[%clk 0:00:15]} 100. Kh1 {[%clk 0:00:23]}  Bf3# {[%clk 0:00:15]} 0-1


[Site "https://www.chess.com"]

[Event "Titled Tuesday Blitz November 29 Early 2022"]
[White "Ibarra Jerez, Jose Carlos"]
[Black "Guzman, Christopher"]
[WhiteFideId "2226332"]
[BlackFideId "6405096"]
[WhiteElo "2638"]
[BlackElo "2272"]
[Result "1-0"]
[Round "02"]
[TimeControl "180+1"]
[Date "2022.11.30"]
[WhiteClock "0:01:10"]
[BlackClock "0:01:23"]

1. e4 {[%clk 0:03:00]}  c6 {[%clk 0:02:58]} 2. Nf3 {[%clk 0:02:58]}  d5 {[%clk 0:02:59]} 3. d3 {[%clk 0:02:57]}  dxe4 {[%clk 0:02:59]} 4. dxe4 {[%clk 0:02:57]}  Qxd1+ {[%clk 0:03:00]} 5. Kxd1 {[%clk 0:02:58]}  g6 {[%clk 0:02:59]} 6. Ne5 {[%clk 0:02:55]}  Be6 {[%clk 0:02:56]} 7. Be3 {[%clk 0:02:46]}  Bg7 {[%clk 0:02:57]} 8. Nd3 {[%clk 0:02:45]}  Nf6 {[%clk 0:02:56]} 9. f3 {[%clk 0:02:45]}  Nbd7 {[%clk 0:02:55]} 10. c3 {[%clk 0:02:43]}  O-O {[%clk 0:02:54]} 11. Nf4 {[%clk 0:02:41]}  Ne5 {[%clk 0:02:49]} 12. Nxe6 {[%clk 0:02:41]}  fxe6 {[%clk 0:02:50]} 13. Kc2 {[%clk 0:02:40]}  Rfd8 {[%clk 0:02:50]} 14. Nd2 {[%clk 0:02:40]}  Rd7 {[%clk 0:02:43]} 15. Nb3 {[%clk 0:02:40]}  Kf7 {[%clk 0:02:31]} 16. a4 {[%clk 0:02:33]}  b6 {[%clk 0:02:26]} 17. a5 {[%clk 0:02:33]}  Rb8 {[%clk 0:02:22]} 18. Be2 {[%clk 0:02:25]}  h5 {[%clk 0:02:18]} 19. h3 {[%clk 0:02:23]}  c5 {[%clk 0:02:13]} 20. Bb5 {[%clk 0:02:18]}  Rc7 {[%clk 0:02:13]} 21. Bf4 {[%clk 0:02:11]}  Ne8 {[%clk 0:02:06]} 22. axb6 {[%clk 0:02:02]}  axb6 {[%clk 0:01:49]} 23. Bxe8+ {[%clk 0:01:55]}  Kxe8 {[%clk 0:01:49]} 24. Nd2 {[%clk 0:01:54]}  b5 {[%clk 0:01:43]} 25. Ra6 {[%clk 0:01:53]}  Kf7 {[%clk 0:01:39]} 26. Rha1 {[%clk 0:01:48]}  Rbb7 {[%clk 0:01:32]} 27. Ra8 {[%clk 0:01:41]}  c4 {[%clk 0:01:29]} 28. Rd8 {[%clk 0:01:29]}  Rd7 {[%clk 0:01:29]} 29. Rxd7 {[%clk 0:01:23]}  Nxd7 {[%clk 0:01:30]} 30. Ra5 {[%clk 0:01:15]}  Nc5 {[%clk 0:01:30]} 31. Nxc4 {[%clk 0:01:12]}  Nxe4 {[%clk 0:01:23]} 32. fxe4 {[%clk 0:01:11]}  bxc4 {[%clk 0:01:23]} 33. Rc5 {[%clk 0:01:10]} 1-0


[Site "https://www.chess.com"]

[Event "Titled Tuesday Blitz November 29 Early 2022"]
[White "Ince, Taylan Ruzgar"]
[Black "Durarbayli, Vasif"]
[WhiteFideId "44513089"]
[BlackFideId "13402935"]
[WhiteElo "2147"]
[BlackElo "2586"]
[Result "1-0"]
[Round "02"]
[TimeControl "180+1"]
[Date "2022.11.30"]
[WhiteClock "0:00:23"]
[BlackClock "0:00:08"]

1. Nf3 {[%clk 0:03:00]}  d5 {[%clk 0:02:59]} 2. d4 {[%clk 0:03:00]}  Nf6 {[%clk 0:02:58]} 3. g3 {[%clk 0:03:00]}  Bf5 {[%clk 0:02:57]} 4. Bg2 {[%clk 0:03:00]}  e6 {[%clk 0:02:57]} 5. O-O {[%clk 0:03:00]}  Be7 {[%clk 0:02:58]} 6. c4 {[%clk 0:03:00]}  c6 {[%clk 0:02:58]} 7. b3 {[%clk 0:02:58]}  O-O {[%clk 0:02:57]} 8. Bb2 {[%clk 0:02:58]}  Nbd7 {[%clk 0:02:54]} 9. Nc3 {[%clk 0:02:58]}  Ne4 {[%clk 0:02:54]} 10. Nd2 {[%clk 0:02:58]}  Ndf6 {[%clk 0:02:33]} 11. Ndxe4 {[%clk 0:02:50]}  Nxe4 {[%clk 0:02:33]} 12. Nxe4 {[%clk 0:02:48]}  Bxe4 {[%clk 0:02:33]} 13. Bxe4 {[%clk 0:02:45]}  dxe4 {[%clk 0:02:34]} 14. Qc2 {[%clk 0:02:44]}  f5 {[%clk 0:02:34]} 15. f3 {[%clk 0:02:45]}  Bf6 {[%clk 0:02:28]} 16. Rad1 {[%clk 0:02:43]}  exf3 {[%clk 0:02:23]} 17. Rxf3 {[%clk 0:02:28]}  Qa5 {[%clk 0:02:08]} 18. Bc3 {[%clk 0:02:26]}  Qc7 {[%clk 0:02:07]} 19. e4 {[%clk 0:02:25]}  fxe4 {[%clk 0:02:02]} 20. Qxe4 {[%clk 0:02:25]}  Rae8 {[%clk 0:02:03]} 21. Re1 {[%clk 0:02:18]}  Qd7 {[%clk 0:02:03]} 22. Rd3 {[%clk 0:02:17]}  Qd6 {[%clk 0:01:50]} 23. Kg2 {[%clk 0:02:12]}  Re7 {[%clk 0:01:48]} 24. Qg4 {[%clk 0:02:02]}  Rd8 {[%clk 0:01:45]} 25. Rde3 {[%clk 0:01:57]}  Rde8 {[%clk 0:01:30]} 26. Re4 {[%clk 0:01:39]}  b6 {[%clk 0:01:09]} 27. Rf1 {[%clk 0:01:19]}  Rf7 {[%clk 0:01:03]} 28. Rfe1 {[%clk 0:01:19]}  Rfe7 {[%clk 0:01:03]} 29. Rf1 {[%clk 0:01:19]}  Kh8 {[%clk 0:01:02]} 30. Rfe1 {[%clk 0:01:10]}  a5 {[%clk 0:00:41]} 31. Qh5 {[%clk 0:01:08]}  Qd7 {[%clk 0:00:33]} 32. a4 {[%clk 0:01:05]}  c5 {[%clk 0:00:30]} 33. Rd1 {[%clk 0:00:49]}  Rd8 {[%clk 0:00:26]} 34. Ba1 {[%clk 0:00:27]}  Qb7 {[%clk 0:00:12]} 35. Qf3 {[%clk 0:00:27]}  Red7 {[%clk 0:00:09]} 36. Rxe6 {[%clk 0:00:24]}  Qxf3+ {[%clk 0:00:10]} 37. Kxf3 {[%clk 0:00:25]}  cxd4 {[%clk 0:00:03]} 38. Rxb6 {[%clk 0:00:22]}  Kg8 {[%clk 0:00:01]} 39. Rd3 {[%clk 0:00:19]}  Re8 {[%clk 0:00:01]} 40. Rb5 {[%clk 0:00:19]}  Rf7 {[%clk 0:00:02]} 41. Kg2 {[%clk 0:00:19]}  Re2+ {[%clk 0:00:02]} 42. Kh3 {[%clk 0:00:19]}  Rfe7 {[%clk 0:00:02]} 43. Bxd4 {[%clk 0:00:20]}  Bxd4 {[%clk 0:00:02]} 44. Rxd4 {[%clk 0:00:20]}  Rb2 {[%clk 0:00:02]} 45. Rb8+ {[%clk 0:00:21]}  Kf7 {[%clk 0:00:02]} 46. Rf4+ {[%clk 0:00:22]}  Kg6 {[%clk 0:00:03]} 47. Rg4+ {[%clk 0:00:22]}  Kh6 {[%clk 0:00:03]} 48. Rb5 {[%clk 0:00:23]}  g6 {[%clk 0:00:03]} 49. Rh4+ {[%clk 0:00:24]}  Kg7 {[%clk 0:00:03]} 50. Rd4 {[%clk 0:00:24]}  Ree2 {[%clk 0:00:02]} 51. Rb7+ {[%clk 0:00:25]}  Kh6 {[%clk 0:00:03]} 52. Rh4+ {[%clk 0:00:25]}  Kg5 {[%clk 0:00:04]} 53. Rb5+ {[%clk 0:00:25]}  Kf6 {[%clk 0:00:04]} 54. Rf4+ {[%clk 0:00:25]}  Kg7 {[%clk 0:00:05]} 55. Kg4 {[%clk 0:00:25]}  Kh6 {[%clk 0:00:04]} 56. h4 {[%clk 0:00:24]}  Re3 {[%clk 0:00:05]} 57. Rb7 {[%clk 0:00:22]}  Rg2 {[%clk 0:00:03]} 58. Rf3 {[%clk 0:00:23]}  Rxf3 {[%clk 0:00:02]} 59. Kxf3 {[%clk 0:00:24]}  Rb2 {[%clk 0:00:03]} 60. Rb5 {[%clk 0:00:24]}  Rc2 {[%clk 0:00:03]} 61. Kg4 {[%clk 0:00:23]}  Rc3 {[%clk 0:00:02]} 62. Rb6 {[%clk 0:00:21]}  Kg7 {[%clk 0:00:02]} 63. Kf4 {[%clk 0:00:20]}  h5 {[%clk 0:00:02]} 64. g4 {[%clk 0:00:19]}  hxg4 {[%clk 0:00:01]} 65. Kxg4 {[%clk 0:00:20]}  Kf7 {[%clk 0:00:02]} 66. h5 {[%clk 0:00:20]}  gxh5+ {[%clk 0:00:02]} 67. Kxh5 {[%clk 0:00:21]}  Ke7 {[%clk 0:00:02]} 68. Rb5 {[%clk 0:00:22]}  Kd6 {[%clk 0:00:03]} 69. Kg5 {[%clk 0:00:22]}  Kc6 {[%clk 0:00:03]} 70. Kf4 {[%clk 0:00:23]}  Rh3 {[%clk 0:00:04]} 71. Ke4 {[%clk 0:00:24]}  Rc3 {[%clk 0:00:04]} 72. Kd4 {[%clk 0:00:24]}  Rh3 {[%clk 0:00:05]} 73. Rc5+ {[%clk 0:00:23]}  Kd6 {[%clk 0:00:04]} 74. Rb5 {[%clk 0:00:24]}  Kc6 {[%clk 0:00:05]} 75. c5 {[%clk 0:00:24]}  Rh4+ {[%clk 0:00:05]} 76. Kc3 {[%clk 0:00:24]}  Rh3+ {[%clk 0:00:05]} 77. Kb2 {[%clk 0:00:24]}  Rh2+ {[%clk 0:00:05]} 78. Ka3 {[%clk 0:00:24]}  Rh1 {[%clk 0:00:03]} 79. Rxa5 {[%clk 0:00:24]}  Ra1+ {[%clk 0:00:03]} 80. Kb4 {[%clk 0:00:25]}  Rh1 {[%clk 0:00:04]} 81. Rb5 {[%clk 0:00:25]}  Rh4+ {[%clk 0:00:05]} 82. Ka3 {[%clk 0:00:25]}  Rh1 {[%clk 0:00:05]} 83. Ra5 {[%clk 0:00:25]}  Rh4 {[%clk 0:00:05]} 84. b4 {[%clk 0:00:25]}  Rh3+ {[%clk 0:00:05]} 85. Kb2 {[%clk 0:00:25]}  Kd5 {[%clk 0:00:06]} 86. c6+ {[%clk 0:00:22]}  Kxc6 {[%clk 0:00:06]} 87. Rc5+ {[%clk 0:00:22]}  Kb6 {[%clk 0:00:06]} 88. Rc3 {[%clk 0:00:23]}  Rh1 {[%clk 0:00:05]} 89. Kb3 {[%clk 0:00:23]}  Rh6 {[%clk 0:00:05]} 90. a5+ {[%clk 0:00:22]}  Kb5 {[%clk 0:00:05]} 91. Rc5+ {[%clk 0:00:22]}  Ka6 {[%clk 0:00:06]} 92. Ka4 {[%clk 0:00:23]}  Rh1 {[%clk 0:00:06]} 93. Rc6+ {[%clk 0:00:24]}  Kb7 {[%clk 0:00:07]} 94. Rg6 {[%clk 0:00:24]}  Rh5 {[%clk 0:00:07]} 95. a6+ {[%clk 0:00:24]}  Ka7 {[%clk 0:00:07]} 96. b5 {[%clk 0:00:24]}  Rh1 {[%clk 0:00:08]} 97. Rg7+ {[%clk 0:00:23]}  Kb6 {[%clk 0:00:08]} 98. Rb7+ {[%clk 0:00:23]}  Kc5 {[%clk 0:00:09]} 99. a7 {[%clk 0:00:22]}  Ra1+ {[%clk 0:00:08]} 100. Kb3 {[%clk 0:00:23]} 1-0


[Site "https://www.chess.com"]

[Event "Titled Tuesday Blitz November 29 Early 2022"]
[White "Indjic, Aleksandar"]
[Black "Grave, Jacob Templen"]
[WhiteFideId "911925"]
[BlackFideId "1542656"]
[WhiteElo "2592"]
[BlackElo "2126"]
[Result "1-0"]
[Round "02"]
[TimeControl "180+1"]
[Date "2022.11.30"]
[WhiteClock "0:01:15"]
[BlackClock "0:00:03"]

1. e4 {[%clk 0:02:59]}  c6 {[%clk 0:02:58]} 2. d4 {[%clk 0:02:57]}  d5 {[%clk 0:02:59]} 3. exd5 {[%clk 0:02:57]}  cxd5 {[%clk 0:02:59]} 4. Bd3 {[%clk 0:02:56]}  Nc6 {[%clk 0:02:58]} 5. c3 {[%clk 0:02:57]}  Nf6 {[%clk 0:02:53]} 6. Bf4 {[%clk 0:02:55]}  Bg4 {[%clk 0:02:49]} 7. Qb3 {[%clk 0:02:53]}  Qd7 {[%clk 0:02:48]} 8. Nd2 {[%clk 0:02:52]}  e6 {[%clk 0:02:49]} 9. Ngf3 {[%clk 0:02:51]}  Bd6 {[%clk 0:02:47]} 10. Bg3 {[%clk 0:02:45]}  O-O {[%clk 0:02:41]} 11. O-O {[%clk 0:02:44]}  Bxg3 {[%clk 0:02:32]} 12. hxg3 {[%clk 0:02:42]}  Bh5 {[%clk 0:02:32]} 13. Rae1 {[%clk 0:02:40]}  Bg6 {[%clk 0:02:30]} 14. Bxg6 {[%clk 0:02:38]}  hxg6 {[%clk 0:02:29]} 15. Ne5 {[%clk 0:02:38]}  Qc7 {[%clk 0:02:21]} 16. f4 {[%clk 0:02:37]}  Rab8 {[%clk 0:02:14]} 17. Qb5 {[%clk 0:02:26]}  a6 {[%clk 0:02:09]} 18. Qe2 {[%clk 0:02:25]}  b5 {[%clk 0:02:07]} 19. Rc1 {[%clk 0:02:20]}  Rfe8 {[%clk 0:01:56]} 20. g4 {[%clk 0:02:19]}  Qd6 {[%clk 0:01:11]} 21. g5 {[%clk 0:02:16]}  Nd7 {[%clk 0:01:07]} 22. a3 {[%clk 0:02:13]}  a5 {[%clk 0:01:06]} 23. b4 {[%clk 0:02:12]}  axb4 {[%clk 0:00:59]} 24. axb4 {[%clk 0:02:13]}  Rec8 {[%clk 0:00:44]} 25. Kf2 {[%clk 0:02:00]}  Nb6 {[%clk 0:00:43]} 26. Rh1 {[%clk 0:01:59]}  Nc4 {[%clk 0:00:41]} 27. Nb3 {[%clk 0:01:57]}  Kf8 {[%clk 0:00:32]} 28. Rh7 {[%clk 0:01:53]}  Nxb4 {[%clk 0:00:17]} 29. cxb4 {[%clk 0:01:50]}  Nxe5 {[%clk 0:00:17]} 30. Qxe5 {[%clk 0:01:41]}  Qxe5 {[%clk 0:00:15]} 31. fxe5 {[%clk 0:01:42]}  Rxc1 {[%clk 0:00:11]} 32. Nxc1 {[%clk 0:01:42]}  Ke7 {[%clk 0:00:10]} 33. Nd3 {[%clk 0:01:38]}  Rc8 {[%clk 0:00:10]} 34. Ke3 {[%clk 0:01:32]}  Ra8 {[%clk 0:00:09]} 35. Nf4 {[%clk 0:01:19]}  Ra3+ {[%clk 0:00:08]} 36. Nd3 {[%clk 0:01:17]}  Ra8 {[%clk 0:00:07]} 37. g3 {[%clk 0:01:17]}  Rc8 {[%clk 0:00:05]} 38. g4 {[%clk 0:01:16]}  Ra8 {[%clk 0:00:06]} 39. Rh1 {[%clk 0:01:15]}  Ra3 {[%clk 0:00:04]} 40. Rc1 {[%clk 0:01:15]}  Kd7 {[%clk 0:00:03]} 41. Rc5 {[%clk 0:01:15]} 1-0


[Site "https://www.chess.com"]

[Event "Titled Tuesday Blitz November 29 Early 2022"]
[White "Ismayil, Malak"]
[Black "Figorito, Nick"]
[WhiteFideId "13412604"]
[BlackFideId "30923689"]
[WhiteElo "1879"]
[BlackElo "2374"]
[Result "1-0"]
[Round "02"]
[TimeControl "180+1"]
[Date "2022.11.30"]
[WhiteClock "0:00:52"]
[BlackClock "0:01:05"]

1. e4 {[%clk 0:03:00]}  e6 {[%clk 0:03:00]} 2. d4 {[%clk 0:03:00]}  d5 {[%clk 0:03:01]} 3. Nd2 {[%clk 0:03:00]}  Nf6 {[%clk 0:03:01]} 4. e5 {[%clk 0:02:58]}  Nfd7 {[%clk 0:03:01]} 5. Bd3 {[%clk 0:02:59]}  c5 {[%clk 0:03:02]} 6. c3 {[%clk 0:03:00]}  Nc6 {[%clk 0:03:02]} 7. Ne2 {[%clk 0:03:00]}  cxd4 {[%clk 0:03:03]} 8. cxd4 {[%clk 0:03:01]}  f6 {[%clk 0:03:04]} 9. exf6 {[%clk 0:03:01]}  Nxf6 {[%clk 0:03:05]} 10. Nf3 {[%clk 0:03:02]}  Bd6 {[%clk 0:03:05]} 11. O-O {[%clk 0:03:02]}  Qc7 {[%clk 0:03:06]} 12. Bg5 {[%clk 0:03:01]}  O-O {[%clk 0:03:06]} 13. Qc2 {[%clk 0:02:59]}  Nb4 {[%clk 0:02:50]} 14. Qxc7 {[%clk 0:02:55]}  Bxc7 {[%clk 0:02:51]} 15. Bb1 {[%clk 0:02:47]}  Bd7 {[%clk 0:02:48]} 16. a3 {[%clk 0:02:45]}  Bb5 {[%clk 0:02:39]} 17. Re1 {[%clk 0:02:45]}  Nd3 {[%clk 0:02:32]} 18. Bxd3 {[%clk 0:02:45]}  Bxd3 {[%clk 0:02:33]} 19. Nc3 {[%clk 0:02:46]}  Ne4 {[%clk 0:02:23]} 20. Nxe4 {[%clk 0:02:45]}  Bxe4 {[%clk 0:02:22]} 21. Nd2 {[%clk 0:02:45]}  Bf5 {[%clk 0:02:15]} 22. f3 {[%clk 0:02:41]}  h6 {[%clk 0:02:09]} 23. Be3 {[%clk 0:02:40]}  Rac8 {[%clk 0:01:59]} 24. Rac1 {[%clk 0:02:40]}  Bb6 {[%clk 0:01:56]} 25. g4 {[%clk 0:02:34]}  Bg6 {[%clk 0:01:51]} 26. Bf2 {[%clk 0:02:34]}  Kf7 {[%clk 0:01:41]} 27. Kg2 {[%clk 0:02:33]}  Bd3 {[%clk 0:01:28]} 28. Nb3 {[%clk 0:02:30]}  Bc4 {[%clk 0:01:23]} 29. Nc5 {[%clk 0:02:24]}  Bxc5 {[%clk 0:01:23]} 30. dxc5 {[%clk 0:02:25]}  Rfe8 {[%clk 0:01:21]} 31. f4 {[%clk 0:02:21]}  Bd3 {[%clk 0:01:20]} 32. Bd4 {[%clk 0:02:19]}  Be4+ {[%clk 0:01:20]} 33. Kg3 {[%clk 0:02:20]}  g6 {[%clk 0:01:19]} 34. b4 {[%clk 0:02:17]}  a6 {[%clk 0:01:19]} 35. Be5 {[%clk 0:02:10]}  h5 {[%clk 0:01:18]} 36. gxh5 {[%clk 0:01:46]}  gxh5 {[%clk 0:01:19]} 37. Kh4 {[%clk 0:01:46]}  Rg8 {[%clk 0:01:15]} 38. Rg1 {[%clk 0:01:46]}  Bf3 {[%clk 0:01:12]} 39. Rcf1 {[%clk 0:01:40]}  Rxg1 {[%clk 0:01:10]} 40. Rxg1 {[%clk 0:01:40]}  Rg8 {[%clk 0:01:11]} 41. Rxg8 {[%clk 0:01:20]}  Kxg8 {[%clk 0:01:12]} 42. Kg5 {[%clk 0:01:21]}  Kf7 {[%clk 0:01:11]} 43. a4 {[%clk 0:01:15]}  Bd1 {[%clk 0:01:10]} 44. b5 {[%clk 0:01:11]}  Bxa4 {[%clk 0:01:07]} 45. c6 {[%clk 0:00:52]}  bxc6 {[%clk 0:01:05]} 46. b6 {[%clk 0:00:52]} 1-0


[Site "https://www.chess.com"]

[Event "Titled Tuesday Blitz November 29 Early 2022"]
[White "Ivic, Velimir"]
[Black "Ezat, Mohamed"]
[WhiteFideId "950122"]
[BlackFideId "10600906"]
[WhiteElo "2625"]
[BlackElo "2386"]
[Result "1-0"]
[Round "02"]
[TimeControl "180+1"]
[Date "2022.11.30"]
[WhiteClock "0:00:43"]
[BlackClock "0:00:15"]

1. e4 {[%clk 0:02:51]}  c6 {[%clk 0:02:55]} 2. d4 {[%clk 0:02:51]}  d5 {[%clk 0:02:56]} 3. e5 {[%clk 0:02:52]}  Bf5 {[%clk 0:02:55]} 4. h4 {[%clk 0:02:52]}  h5 {[%clk 0:02:43]} 5. Bd3 {[%clk 0:02:53]}  Bxd3 {[%clk 0:02:42]} 6. Qxd3 {[%clk 0:02:54]}  e6 {[%clk 0:02:43]} 7. Bg5 {[%clk 0:02:54]}  Qb6 {[%clk 0:02:41]} 8. Nd2 {[%clk 0:02:54]}  c5 {[%clk 0:02:38]} 9. c4 {[%clk 0:02:54]}  dxc4 {[%clk 0:02:20]} 10. Nxc4 {[%clk 0:02:52]}  Qc6 {[%clk 0:02:17]} 11. Nf3 {[%clk 0:02:50]}  Na6 {[%clk 0:02:06]} 12. O-O {[%clk 0:02:48]}  Nb4 {[%clk 0:02:05]} 13. Qe2 {[%clk 0:02:48]}  Nd5 {[%clk 0:02:04]} 14. Rac1 {[%clk 0:02:44]}  b5 {[%clk 0:01:50]} 15. Ncd2 {[%clk 0:02:18]}  c4 {[%clk 0:01:47]} 16. a4 {[%clk 0:02:17]}  a6 {[%clk 0:01:44]} 17. Ne4 {[%clk 0:02:07]}  Be7 {[%clk 0:01:19]} 18. Bxe7 {[%clk 0:01:59]}  Ngxe7 {[%clk 0:01:19]} 19. Nd6+ {[%clk 0:01:59]}  Kf8 {[%clk 0:01:19]} 20. Ng5 {[%clk 0:02:00]}  Nf4 {[%clk 0:01:16]} 21. Qf3 {[%clk 0:01:41]}  Qxf3 {[%clk 0:01:15]} 22. gxf3 {[%clk 0:01:42]}  Ne2+ {[%clk 0:01:15]} 23. Kh2 {[%clk 0:01:42]}  Nxc1 {[%clk 0:01:15]} 24. Rxc1 {[%clk 0:01:43]}  Nf5 {[%clk 0:00:50]} 25. Nxf5 {[%clk 0:01:25]}  exf5 {[%clk 0:00:49]} 26. d5 {[%clk 0:01:26]}  Ke7 {[%clk 0:00:39]} 27. d6+ {[%clk 0:01:22]}  Ke8 {[%clk 0:00:33]} 28. f4 {[%clk 0:01:20]}  Rh6 {[%clk 0:00:29]} 29. Nf3 {[%clk 0:01:10]}  Kd7 {[%clk 0:00:27]} 30. Nd4 {[%clk 0:01:11]}  Rg6 {[%clk 0:00:26]} 31. f3 {[%clk 0:01:10]}  Rb8 {[%clk 0:00:18]} 32. axb5 {[%clk 0:01:05]}  axb5 {[%clk 0:00:17]} 33. Ra1 {[%clk 0:01:06]}  Rb7 {[%clk 0:00:16]} 34. b3 {[%clk 0:00:46]}  cxb3 {[%clk 0:00:15]} 35. Nxb3 {[%clk 0:00:45]}  b4 {[%clk 0:00:15]} 36. Nc5+ {[%clk 0:00:45]}  Kc6 {[%clk 0:00:15]} 37. Nxb7 {[%clk 0:00:46]}  Kxb7 {[%clk 0:00:16]} 38. Rb1 {[%clk 0:00:42]}  Kc6 {[%clk 0:00:16]} 39. Rxb4 {[%clk 0:00:43]}  f6 {[%clk 0:00:16]} 40. Rc4+ {[%clk 0:00:42]}  Kd7 {[%clk 0:00:15]} 41. Rc7+ {[%clk 0:00:42]}  Ke6 {[%clk 0:00:15]} 42. Re7+ {[%clk 0:00:42]}  Kd5 {[%clk 0:00:15]} 43. d7 {[%clk 0:00:43]} 1-0


[Site "https://www.chess.com"]